{"text_format":"1","workbook":"xlsx","n_sheets":6,"sheets":["Indhold_Faner","XXX","YYY","ZZZ","Jens","Knud"],"not_rendered":{"charts":0,"images":1,"macros":1,"external_links":0,"defined_names":1,"comments":0,"pivot_tables":0},"unopened":[],"bounds":{"document_bytes":16777216,"sheet_cells":100000,"rows_first":2000,"rows_last":500,"rows_between":2000,"halvings":0,"cell_chars":16384,"cell_head_chars":4096},"cells_cut":0,"cells_raw":0,"read":"whole","date_system":"1900"}

{"sheet":"Indhold_Faner","index":0,"n_rows":31,"n_cols":5,"rows_kept":31,"cut":false,"hidden":false,"merged":[]}
[null,"=LIST(alle faner i mappen)"]
[null,"GERNE:->","=sorter(liste(list alle faner);1)"]
[]
[]
["FANER","BESKRIVELSE"]
["XXX","Indeholder bla",{"$f":"B6&\" \"&A6","v":"Indeholder bla XXX"}]
["YYY","Indeholder bla",{"$f":"B7&\" \"&A7","v":"Indeholder bla YYY"},null,"Skulle så vise dette."]
["ZZZ","Indeholder bla","Indeholder bla ZZZ",null,"Og når jeg tilføjer en ny fane så kommer den bare på listen"]
["Jens","Indeholder bla","Indeholder bla Jens"]
["Knud","Indeholder bla","Indeholder bla Knud"]
[null,null," "]
[null,null," ",null,"Egentlig vil jeg bare have samme liste, som når jeg højreklikker her \"<  >\":"]
[null,null," "]
[]
[]
[]
[]
[]
[]
[null,null,{"$f":"B20&\" \"&A20","v":" "}]
[null,null," "]
[null,null," "]
[null,null," "]
[null,null," "]
[null,null," "]
[null,null," "]
[null,null," "]
[null,null," "]
[null,null," "]
[null,null," "]
[null,null," "]

{"sheet":"XXX","index":1,"n_rows":0,"n_cols":0,"rows_kept":0,"cut":false,"hidden":false,"merged":[]}

{"sheet":"YYY","index":2,"n_rows":0,"n_cols":0,"rows_kept":0,"cut":false,"hidden":false,"merged":[]}

{"sheet":"ZZZ","index":3,"n_rows":0,"n_cols":0,"rows_kept":0,"cut":false,"hidden":false,"merged":[]}

{"sheet":"Jens","index":4,"n_rows":0,"n_cols":0,"rows_kept":0,"cut":false,"hidden":false,"merged":[]}

{"sheet":"Knud","index":5,"n_rows":0,"n_cols":0,"rows_kept":0,"cut":false,"hidden":false,"merged":[]}